[Event "*** Titled Tuesday Blitz"]
[Site "Chess.com"]
[Date "2021.03.30"]
[Round "7"]
[White "Manukyan_Artak"]
[Black "Goryachkina"]
[Result "0-1"]
[WhiteElo "2473"]
[BlackElo "2641"]
[TimeControl "180+1"]
[EndTime "11:20:07 PDT"]
[Termination "Goryachkina won on time"]

1. e4 {[%clk 0:03:00.9]} 1... c5 {[%clk 0:02:59.7]} 2. Nf3 {[%clk 0:03:00.4]}
2... a6 {[%clk 0:02:59.8]} 3. c3 {[%clk 0:02:59.9]} 3... d5 {[%clk 0:02:58.1]}
4. exd5 {[%clk 0:02:58.9]} 4... Qxd5 {[%clk 0:02:59]} 5. d4 {[%clk 0:02:58.9]}
5... Nf6 {[%clk 0:02:54.3]} 6. Be3 {[%clk 0:02:58.2]} 6... cxd4 {[%clk
0:02:48.1]} 7. cxd4 {[%clk 0:02:58]} 7... Bg4 {[%clk 0:02:47.5]} 8. Nc3 {[%clk
0:02:56.9]} 8... Qd8 {[%clk 0:02:45.8]} 9. h3 {[%clk 0:02:54.5]} 9... Be6 {[%clk
0:02:19.3]} 10. Bd3 {[%clk 0:02:53.2]} 10... g6 {[%clk 0:02:18.7]} 11. O-O
{[%clk 0:02:53.2]} 11... Bg7 {[%clk 0:02:18.4]} 12. Rc1 {[%clk 0:02:48.9]} 12...
O-O {[%clk 0:02:17.1]} 13. Ng5 {[%clk 0:02:30.8]} 13... Bd5 {[%clk 0:02:16.8]}
14. Nxd5 {[%clk 0:02:10.5]} 14... Nxd5 {[%clk 0:02:16.3]} 15. Qb3 {[%clk
0:02:07.1]} 15... Nc6 {[%clk 0:02:09.2]} 16. Be4 {[%clk 0:02:02.6]} 16... e6
{[%clk 0:02:02.9]} 17. Bxd5 {[%clk 0:01:57.1]} 17... exd5 {[%clk 0:02:02.5]} 18.
Nf3 {[%clk 0:01:57.1]} 18... Na5 {[%clk 0:01:55.6]} 19. Qa4 {[%clk 0:01:52.5]}
19... Nc4 {[%clk 0:01:48.6]} 20. b3 {[%clk 0:01:49.7]} 20... Nxe3 {[%clk
0:01:45.3]} 21. fxe3 {[%clk 0:01:49.6]} 21... Qe7 {[%clk 0:01:44.2]} 22. Rce1
{[%clk 0:01:49.3]} 22... Rac8 {[%clk 0:01:36.6]} 23. Qa5 {[%clk 0:01:45.4]}
23... Rfd8 {[%clk 0:01:29.9]} 24. Qd2 {[%clk 0:01:39.8]} 24... h6 {[%clk
0:01:21]} 25. Rc1 {[%clk 0:01:37]} 25... Qe6 {[%clk 0:01:07.8]} 26. Rxc8 {[%clk
0:01:34.3]} 26... Rxc8 {[%clk 0:01:08.7]} 27. Rc1 {[%clk 0:01:34.4]} 27... Bf8
{[%clk 0:01:05.3]} 28. Kf2 {[%clk 0:01:30.6]} 28... Bd6 {[%clk 0:01:04.3]} 29.
Rxc8+ {[%clk 0:01:18.9]} 29... Qxc8 {[%clk 0:01:05.2]} 30. Ke2 {[%clk
0:01:11.8]} 30... Kg7 {[%clk 0:01:01.4]} 31. Kd1 {[%clk 0:01:11.2]} 31... Qf5
{[%clk 0:00:52.9]} 32. Qc2 {[%clk 0:01:06.3]} 32... Qd7 {[%clk 0:00:51.8]} 33.
Qd3 {[%clk 0:01:04.1]} 33... Qc7 {[%clk 0:00:49.2]} 34. Qc2 {[%clk 0:00:53.2]}
34... Qa5 {[%clk 0:00:48.2]} 35. Kc1 {[%clk 0:00:51]} 35... Qa3+ {[%clk
0:00:41]} 36. Kb1 {[%clk 0:00:47.8]} 36... a5 {[%clk 0:00:40.4]} 37. Qb2 {[%clk
0:00:45.3]} 37... Qb4 {[%clk 0:00:40.6]} 38. Qd2 {[%clk 0:00:45.5]} 38... Qb5
{[%clk 0:00:39.7]} 39. Kc2 {[%clk 0:00:41.6]} 39... a4 {[%clk 0:00:38.1]} 40.
Qd3 {[%clk 0:00:41.4]} 40... Qa5 {[%clk 0:00:37.5]} 41. Nd2 {[%clk 0:00:39]}
41... axb3+ {[%clk 0:00:30]} 42. Qxb3 {[%clk 0:00:38.6]} 42... Bb4 {[%clk
0:00:28.5]} 43. Nf3 {[%clk 0:00:35.1]} 43... Qb5 {[%clk 0:00:24.8]} 44. Qd3
{[%clk 0:00:29.4]} 44... Qc6+ {[%clk 0:00:24.9]} 45. Kb1 {[%clk 0:00:29]} 45...
Bc3 {[%clk 0:00:24.7]} 46. Qc2 {[%clk 0:00:21]} 46... Qb5+ {[%clk 0:00:24.1]}
47. Qb3 {[%clk 0:00:18.7]} 47... Qf1+ {[%clk 0:00:24]} 48. Kc2 {[%clk 0:00:19]}
48... Qxg2+ {[%clk 0:00:18.9]} 49. Kxc3 {[%clk 0:00:18.6]} 49... Qxf3 {[%clk
0:00:19.5]} 50. Kb4 {[%clk 0:00:17.5]} 50... Qxh3 {[%clk 0:00:17.6]} 51. Qxd5
{[%clk 0:00:16.6]} 51... Qxe3 {[%clk 0:00:17.7]} 52. Kc5 {[%clk 0:00:13.2]}
52... h5 {[%clk 0:00:17.6]} 53. Qxb7 {[%clk 0:00:12.5]} 53... h4 {[%clk
0:00:17.9]} 54. Qb2 {[%clk 0:00:12]} 54... Qe7+ {[%clk 0:00:16.7]} 55. Kc6
{[%clk 0:00:11.3]} 55... Qf6+ {[%clk 0:00:16.8]} 56. Kc5 {[%clk 0:00:11.3]}
56... h3 {[%clk 0:00:17.1]} 57. Qh2 {[%clk 0:00:10]} 57... Qe7+ {[%clk
0:00:15.8]} 58. Kc6 {[%clk 0:00:09.7]} 58... Qe6+ {[%clk 0:00:16]} 59. Kc5
{[%clk 0:00:09.5]} 59... Qe7+ {[%clk 0:00:15.2]} 60. Kc6 {[%clk 0:00:09.5]}
60... Qe8+ {[%clk 0:00:15.3]} 61. Kc5 {[%clk 0:00:09.7]} 61... Qc8+ {[%clk
0:00:15.5]} 62. Kd5 {[%clk 0:00:09.8]} 62... g5 {[%clk 0:00:15.6]} 63. Ke4
{[%clk 0:00:08.8]} 63... g4 {[%clk 0:00:15.1]} 64. d5 {[%clk 0:00:06.2]} 64...
Qe8+ {[%clk 0:00:12.5]} 65. Kd4 {[%clk 0:00:06.4]} 65... Qa4+ {[%clk 0:00:12.2]}
66. Ke5 {[%clk 0:00:06.6]} 66... Qa5 {[%clk 0:00:09.8]} 67. Kd6 {[%clk
0:00:05.9]} 67... Qb4+ {[%clk 0:00:09.4]} 68. Kc6 {[%clk 0:00:05.7]} 68... Qc3+
{[%clk 0:00:09.4]} 69. Kd7 {[%clk 0:00:05.8]} 69... Qf3 {[%clk 0:00:07.5]} 70.
d6 {[%clk 0:00:05.8]} 70... Qg2 {[%clk 0:00:06]} 71. Qe5+ {[%clk 0:00:05.2]}
71... Kg6 {[%clk 0:00:06.5]} 72. Ke8 {[%clk 0:00:04.6]} 72... h2 {[%clk
0:00:04.7]} 73. d7 {[%clk 0:00:03.8]} 73... Qa8+ {[%clk 0:00:04.7]} 74. d8=Q
{[%clk 0:00:03.8]} 74... Qxd8+ {[%clk 0:00:05]} 75. Kxd8 {[%clk 0:00:04.7]}
75... h1=Q {[%clk 0:00:05.7]} 0-1

[Event "*** Titled Tuesday Blitz"]
[Site "Chess.com"]
[Date "2021.03.30"]
[Round "7"]
[White "liczner"]
[Black "Genghis_K"]
[Result "1/2-1/2"]
[WhiteElo "2820"]
[BlackElo "2945"]
[TimeControl "180+1"]
[EndTime "11:20:12 PDT"]
[Termination "Game drawn - insufficient material"]

1. e4 {[%clk 0:03:00.9]} 1... c5 {[%clk 0:02:54.8]} 2. Nf3 {[%clk 0:03:00.9]}
2... d6 {[%clk 0:02:55.5]} 3. d4 {[%clk 0:02:59.7]} 3... cxd4 {[%clk 0:02:56.4]}
4. Nxd4 {[%clk 0:03:00.5]} 4... Nf6 {[%clk 0:02:57.1]} 5. Nc3 {[%clk 0:03:00.8]}
5... a6 {[%clk 0:02:57.8]} 6. f4 {[%clk 0:03:01.2]} 6... e5 {[%clk 0:02:57.8]}
7. Nf3 {[%clk 0:03:01.1]} 7... Nbd7 {[%clk 0:02:58.4]} 8. Bd3 {[%clk 0:03:00.5]}
8... Be7 {[%clk 0:02:58.9]} 9. a4 {[%clk 0:03:00.1]} 9... O-O {[%clk 0:02:58.5]}
10. O-O {[%clk 0:03:00.4]} 10... Nc5 {[%clk 0:02:52.2]} 11. Kh1 {[%clk
0:02:53.5]} 11... Be6 {[%clk 0:02:50.8]} 12. fxe5 {[%clk 0:02:39.6]} 12... dxe5
{[%clk 0:02:51.7]} 13. Nxe5 {[%clk 0:02:38.3]} 13... Bd6 {[%clk 0:02:47]} 14.
Nf3 {[%clk 0:02:35.2]} 14... Ng4 {[%clk 0:02:41.9]} 15. h3 {[%clk 0:02:11.5]}
15... Ne5 {[%clk 0:02:37.2]} 16. Ng5 {[%clk 0:01:42.5]} 16... Nexd3 {[%clk
0:02:20.2]} 17. Nxe6 {[%clk 0:01:25.7]} 17... fxe6 {[%clk 0:02:04.9]} 18. cxd3
{[%clk 0:01:17.6]} 18... Rxf1+ {[%clk 0:01:59.2]} 19. Qxf1 {[%clk 0:01:18.5]}
19... Bf8 {[%clk 0:01:49.9]} 20. Be3 {[%clk 0:00:53.2]} 20... Qxd3 {[%clk
0:01:46.8]} 21. Qf3 {[%clk 0:00:51.2]} 21... Qd7 {[%clk 0:01:39.6]} 22. Rd1
{[%clk 0:00:46.2]} 22... Qe8 {[%clk 0:01:36.2]} 23. Rf1 {[%clk 0:00:36.5]} 23...
Nd7 {[%clk 0:01:33.3]} 24. e5 {[%clk 0:00:29.9]} 24... Nxe5 {[%clk 0:01:26.4]}
25. Qxb7 {[%clk 0:00:28.2]} 25... Rb8 {[%clk 0:01:27]} 26. Qxa6 {[%clk 0:00:26]}
26... Rxb2 {[%clk 0:01:26.8]} 27. Bd4 {[%clk 0:00:24.9]} 27... Qg6 {[%clk
0:01:19.9]} 28. Ne2 {[%clk 0:00:20.8]} 28... Rb1 {[%clk 0:01:01.6]} 29. Rxb1
{[%clk 0:00:12.6]} 29... Qxb1+ {[%clk 0:01:02.5]} 30. Kh2 {[%clk 0:00:13]} 30...
Nf7 {[%clk 0:00:50.6]} 31. Qxe6 {[%clk 0:00:11]} 31... Bd6+ {[%clk 0:00:51.1]}
32. Ng3 {[%clk 0:00:06.5]} 32... Qb8 {[%clk 0:00:51.5]} 33. Bf2 {[%clk
0:00:04.2]} 33... Bc7 {[%clk 0:00:44.9]} 34. a5 {[%clk 0:00:03.4]} 34... Bxa5
{[%clk 0:00:43]} 35. Kh1 {[%clk 0:00:02.3]} 35... Qb1+ {[%clk 0:00:40.2]} 36.
Kh2 {[%clk 0:00:02.2]} 36... Qb8 {[%clk 0:00:38.2]} 37. Kh1 {[%clk 0:00:02.2]}
37... Bc7 {[%clk 0:00:38.9]} 38. Nf5 {[%clk 0:00:02.5]} 38... Qf8 {[%clk
0:00:29.4]} 39. Bg1 {[%clk 0:00:02.5]} 39... Bd8 {[%clk 0:00:24.9]} 40. Nd4
{[%clk 0:00:02.2]} 40... Bf6 {[%clk 0:00:24.4]} 41. Qd5 {[%clk 0:00:02.5]} 41...
Kh8 {[%clk 0:00:23.2]} 42. Nf5 {[%clk 0:00:02.9]} 42... Ne5 {[%clk 0:00:21.9]}
43. Bc5 {[%clk 0:00:03.1]} 43... Qc8 {[%clk 0:00:21.6]} 44. Nd6 {[%clk
0:00:02.8]} 44... Qg8 {[%clk 0:00:18.3]} 45. Qxg8+ {[%clk 0:00:02.2]} 45... Kxg8
{[%clk 0:00:19.2]} 46. Bd4 {[%clk 0:00:02.6]} 46... Nd7 {[%clk 0:00:16]} 47.
Bxf6 {[%clk 0:00:02.6]} 47... Nxf6 {[%clk 0:00:16.9]} 48. Nf5 {[%clk 0:00:03.3]}
48... Kf7 {[%clk 0:00:17.3]} 49. Ne3 {[%clk 0:00:03.8]} 49... Kg6 {[%clk
0:00:17.9]} 50. Kg1 {[%clk 0:00:04.3]} 50... Kg5 {[%clk 0:00:18.6]} 51. Kf2
{[%clk 0:00:04.8]} 51... Kf4 {[%clk 0:00:19.3]} 52. g3+ {[%clk 0:00:04.5]} 52...
Ke4 {[%clk 0:00:19.8]} 53. Nc4 {[%clk 0:00:04.3]} 53... Nh5 {[%clk 0:00:19.1]}
54. Nd6+ {[%clk 0:00:03.7]} 54... Ke5 {[%clk 0:00:19.2]} 55. Nc4+ {[%clk
0:00:03.8]} 55... Ke6 {[%clk 0:00:19]} 56. Ne3 {[%clk 0:00:03.7]} 56... Nf6
{[%clk 0:00:18.7]} 57. Kf3 {[%clk 0:00:04.2]} 57... Ke5 {[%clk 0:00:19.5]} 58.
g4 {[%clk 0:00:03.9]} 58... g6 {[%clk 0:00:19]} 59. Nc4+ {[%clk 0:00:04.2]}
59... Kd5 {[%clk 0:00:19.2]} 60. Ne3+ {[%clk 0:00:04.3]} 60... Kd4 {[%clk
0:00:19.8]} 61. Ng2 {[%clk 0:00:04.8]} 61... Ke5 {[%clk 0:00:18.5]} 62. Ne3
{[%clk 0:00:04.7]} 62... Nd7 {[%clk 0:00:18.3]} 63. Nc4+ {[%clk 0:00:04.8]}
63... Kf6 {[%clk 0:00:18.6]} 64. Ne3 {[%clk 0:00:04.9]} 64... Ne5+ {[%clk
0:00:18.5]} 65. Kg3 {[%clk 0:00:05.4]} 65... Nd3 {[%clk 0:00:17.7]} 66. Nd5+
{[%clk 0:00:05.4]} 66... Ke5 {[%clk 0:00:17.1]} 67. Ne3 {[%clk 0:00:04.8]} 67...
Nc5 {[%clk 0:00:17.7]} 68. Nc4+ {[%clk 0:00:04.8]} 68... Ke4 {[%clk 0:00:16.8]}
69. Nd6+ {[%clk 0:00:04.7]} 69... Ke3 {[%clk 0:00:17]} 70. Nf7 {[%clk
0:00:04.2]} 70... Ne4+ {[%clk 0:00:17]} 71. Kg2 {[%clk 0:00:04.6]} 71... Kf4
{[%clk 0:00:17.4]} 72. Nd8 {[%clk 0:00:04.4]} 72... Nc5 {[%clk 0:00:16.2]} 73.
Nc6 {[%clk 0:00:04.1]} 73... Nd3 {[%clk 0:00:15.6]} 74. Nd4 {[%clk 0:00:03.8]}
74... Ne1+ {[%clk 0:00:15.4]} 75. Kf2 {[%clk 0:00:03]} 75... Nd3+ {[%clk
0:00:15.9]} 76. Kg2 {[%clk 0:00:03.5]} 76... Ne5 {[%clk 0:00:16.1]} 77. Ne6+
{[%clk 0:00:03.5]} 77... Ke4 {[%clk 0:00:12.9]} 78. Ng5+ {[%clk 0:00:03.6]}
78... Kf4 {[%clk 0:00:12.2]} 79. Nxh7 {[%clk 0:00:04.5]} 79... Nxg4 {[%clk
0:00:12.4]} 80. hxg4 {[%clk 0:00:03.5]} 80... Kxg4 {[%clk 0:00:13.3]} 81. Nf8
{[%clk 0:00:04.1]} 81... g5 {[%clk 0:00:12.6]} 82. Ne6 {[%clk 0:00:04.6]} 82...
Kf5 {[%clk 0:00:13.5]} 83. Nxg5 {[%clk 0:00:04.1]} 1/2-1/2

[Event "*** Titled Tuesday Blitz"]
[Site "Chess.com"]
[Date "2021.03.30"]
[Round "7"]
[White "NateSolon"]
[Black "Abund"]
[Result "1/2-1/2"]
[WhiteElo "2574"]
[BlackElo "2733"]
[TimeControl "180+1"]
[EndTime "11:20:34 PDT"]
[Termination "Game drawn by repetition"]

1. d4 {[%clk 0:03:00.9]} 1... Nf6 {[%clk 0:02:59.8]} 2. c4 {[%clk 0:03:00.4]}
2... g6 {[%clk 0:03:00]} 3. g3 {[%clk 0:02:59.7]} 3... c6 {[%clk 0:02:59.7]} 4.
Bg2 {[%clk 0:02:59.2]} 4... d5 {[%clk 0:03:00]} 5. Nf3 {[%clk 0:02:59.6]} 5...
Bg7 {[%clk 0:02:58.4]} 6. O-O {[%clk 0:02:59.7]} 6... O-O {[%clk 0:02:58.7]} 7.
Ne5 {[%clk 0:03:00.1]} 7... Nbd7 {[%clk 0:02:54.9]} 8. Nxd7 {[%clk 0:02:52.7]}
8... Bxd7 {[%clk 0:02:40.4]} 9. cxd5 {[%clk 0:02:52.5]} 9... cxd5 {[%clk
0:02:40.5]} 10. Nc3 {[%clk 0:02:51.6]} 10... Bc6 {[%clk 0:02:40.1]} 11. Bf4
{[%clk 0:02:49.5]} 11... Qb6 {[%clk 0:02:15.6]} 12. Rb1 {[%clk 0:02:42.4]} 12...
Rfd8 {[%clk 0:02:08.7]} 13. b4 {[%clk 0:02:41]} 13... Rac8 {[%clk 0:01:56.6]}
14. b5 {[%clk 0:02:23.6]} 14... Be8 {[%clk 0:01:40.8]} 15. Na4 {[%clk
0:02:23.5]} 15... Qa5 {[%clk 0:01:40.5]} 16. Bd2 {[%clk 0:02:22]} 16... Qc7
{[%clk 0:01:38.4]} 17. Bf4 {[%clk 0:02:16.3]} 17... Qa5 {[%clk 0:01:35.8]} 18.
Bd2 {[%clk 0:02:03.2]} 18... Qc7 {[%clk 0:01:35.7]} 19. Qb3 {[%clk 0:01:49]}
19... b6 {[%clk 0:01:30]} 20. Rfc1 {[%clk 0:01:47.6]} 20... Qd7 {[%clk
0:01:29.6]} 21. Nc3 {[%clk 0:01:45]} 21... e6 {[%clk 0:01:25.6]} 22. a4 {[%clk
0:01:39.9]} 22... Rc4 {[%clk 0:01:23.4]} 23. e3 {[%clk 0:01:37.8]} 23... Rdc8
{[%clk 0:01:23.4]} 24. Bf1 {[%clk 0:01:36.8]} 24... R4c7 {[%clk 0:01:23.5]} 25.
Bd3 {[%clk 0:01:34]} 25... Bf8 {[%clk 0:01:20.9]} 26. Ne2 {[%clk 0:01:25.4]}
26... Qd6 {[%clk 0:01:17.1]} 27. Rxc7 {[%clk 0:00:58.5]} 27... Rxc7 {[%clk
0:01:15.5]} 28. Rc1 {[%clk 0:00:58.4]} 28... Rxc1+ {[%clk 0:01:08]} 29. Nxc1
{[%clk 0:00:59.3]} 29... Qc7 {[%clk 0:01:05.1]} 30. Na2 {[%clk 0:00:54.8]} 30...
Ne4 {[%clk 0:00:58.4]} 31. Bxe4 {[%clk 0:00:52.3]} 31... dxe4 {[%clk 0:00:58.7]}
32. Nc3 {[%clk 0:00:51.2]} 32... Bd7 {[%clk 0:00:51.9]} 33. Nxe4 {[%clk
0:00:50.6]} 33... Bc8 {[%clk 0:00:50.2]} 34. Nf6+ {[%clk 0:00:47.5]} 34... Kh8
{[%clk 0:00:49.1]} 35. d5 {[%clk 0:00:40.9]} 35... Qe7 {[%clk 0:00:25.5]} 36.
Bc3 {[%clk 0:00:36]} 36... Bg7 {[%clk 0:00:22.6]} 37. Ne4 {[%clk 0:00:30]} 37...
e5 {[%clk 0:00:15.7]} 38. Qc4 {[%clk 0:00:26.3]} 38... Bb7 {[%clk 0:00:13.2]}
39. d6 {[%clk 0:00:19.8]} 39... Qd7 {[%clk 0:00:12.5]} 40. Qc7 {[%clk
0:00:19.9]} 40... Bc8 {[%clk 0:00:06.6]} 41. f4 {[%clk 0:00:16.6]} 41... f6
{[%clk 0:00:05.1]} 42. Kf2 {[%clk 0:00:08.5]} 42... Kg8 {[%clk 0:00:04.7]} 43.
Qc4+ {[%clk 0:00:06.3]} 43... Qe6 {[%clk 0:00:03.9]} 44. Qxe6+ {[%clk
0:00:03.7]} 44... Bxe6 {[%clk 0:00:03.8]} 45. fxe5 {[%clk 0:00:02.9]} 45... fxe5
{[%clk 0:00:04.3]} 46. Ng5 {[%clk 0:00:03.6]} 46... Bd7 {[%clk 0:00:04.4]} 47.
Nf3 {[%clk 0:00:04.2]} 47... e4 {[%clk 0:00:03.9]} 48. Bxg7 {[%clk 0:00:04.4]}
48... exf3 {[%clk 0:00:04]} 49. Bd4 {[%clk 0:00:03.6]} 49... Kf7 {[%clk
0:00:04.2]} 50. Kxf3 {[%clk 0:00:03.4]} 50... Ke6 {[%clk 0:00:04.6]} 51. e4
{[%clk 0:00:03]} 51... Bc8 {[%clk 0:00:04.9]} 52. Ke3 {[%clk 0:00:03]} 52... Bd7
{[%clk 0:00:04.3]} 53. e5 {[%clk 0:00:03.1]} 53... Kd5 {[%clk 0:00:04.6]} 54.
Bb2 {[%clk 0:00:02.7]} 54... Ke6 {[%clk 0:00:04.1]} 55. Kf4 {[%clk 0:00:03.2]}
55... h6 {[%clk 0:00:03.7]} 56. Ke4 {[%clk 0:00:02.6]} 56... Bc8 {[%clk
0:00:03.5]} 57. Kd4 {[%clk 0:00:03.3]} 57... Bb7 {[%clk 0:00:03.2]} 58. Bc1
{[%clk 0:00:04.2]} 58... g5 {[%clk 0:00:02.4]} 59. h4 {[%clk 0:00:02.5]} 59...
gxh4 {[%clk 0:00:01.8]} 60. gxh4 {[%clk 0:00:03.4]} 60... h5 {[%clk 0:00:02.1]}
61. Bg5 {[%clk 0:00:04]} 61... Bf3 {[%clk 0:00:02.3]} 62. Bd8 {[%clk 0:00:04.3]}
62... Bd1 {[%clk 0:00:02.3]} 63. Bc7 {[%clk 0:00:05.2]} 63... Bxa4 {[%clk
0:00:02]} 64. Kc4 {[%clk 0:00:05.6]} 64... Bd1 {[%clk 0:00:01.2]} 65. Bb8 {[%clk
0:00:05.2]} 65... a6 {[%clk 0:00:01.5]} 66. bxa6 {[%clk 0:00:04.4]} 66... Be2+
{[%clk 0:00:01.8]} 67. Kd4 {[%clk 0:00:03.3]} 67... Bxa6 {[%clk 0:00:02.7]} 68.
Ba7 {[%clk 0:00:04.1]} 68... b5 {[%clk 0:00:02.9]} 69. Bc5 {[%clk 0:00:05]}
69... Bb7 {[%clk 0:00:02.8]} 70. Bb4 {[%clk 0:00:05.9]} 70... Bc8 {[%clk
0:00:03]} 71. Bc3 {[%clk 0:00:06.5]} 71... Bd7 {[%clk 0:00:03.9]} 72. Kc5 {[%clk
0:00:07]} 72... Be8 {[%clk 0:00:04.3]} 73. Kd4 {[%clk 0:00:07.6]} 73... Bd7
{[%clk 0:00:04.7]} 74. Ke3 {[%clk 0:00:08.2]} 74... Be8 {[%clk 0:00:05.1]} 75.
Kf4 {[%clk 0:00:08.9]} 75... Bf7 {[%clk 0:00:04.9]} 76. Kg5 {[%clk 0:00:09.5]}
76... Be8 {[%clk 0:00:05.4]} 77. Kh6 {[%clk 0:00:08.3]} 77... Kf5 {[%clk
0:00:05.6]} 78. Kg7 {[%clk 0:00:07.9]} 78... Ke6 {[%clk 0:00:05.9]} 79. Kf8
{[%clk 0:00:08.3]} 79... Bc6 {[%clk 0:00:06.2]} 80. Kg7 {[%clk 0:00:08]} 80...
Bd7 {[%clk 0:00:06.2]} 81. Kg6 {[%clk 0:00:08.2]} 81... Be8+ {[%clk 0:00:06.6]}
82. Kg5 {[%clk 0:00:08.8]} 82... Bf7 {[%clk 0:00:06.2]} 83. Kf4 {[%clk
0:00:09.2]} 83... Be8 {[%clk 0:00:06.5]} 84. Ke3 {[%clk 0:00:09.7]} 84... Bc6
{[%clk 0:00:06.7]} 85. Kd4 {[%clk 0:00:10.4]} 85... Bd7 {[%clk 0:00:07.1]}
1/2-1/2

[Event "*** Titled Tuesday Blitz"]
[Site "Chess.com"]
[Date "2021.03.30"]
[Round "7"]
[White "jaskol95"]
[Black "OriTaichman"]
[Result "1/2-1/2"]
[WhiteElo "2418"]
[BlackElo "2539"]
[TimeControl "180+1"]
[EndTime "11:20:35 PDT"]
[Termination "Game drawn - insufficient material"]

1. d4 {[%clk 0:03:00.9]} 1... Nf6 {[%clk 0:02:59.8]} 2. Bf4 {[%clk 0:02:59.4]}
2... g6 {[%clk 0:02:59.5]} 3. Nc3 {[%clk 0:02:59]} 3... d5 {[%clk 0:02:59]} 4.
e3 {[%clk 0:02:58.8]} 4... Bg7 {[%clk 0:02:59.2]} 5. h4 {[%clk 0:02:58.5]} 5...
O-O {[%clk 0:02:56.8]} 6. h5 {[%clk 0:02:58.1]} 6... c5 {[%clk 0:02:56]} 7. hxg6
{[%clk 0:02:55.8]} 7... hxg6 {[%clk 0:02:56.9]} 8. Nf3 {[%clk 0:02:55.5]} 8...
Nc6 {[%clk 0:02:56.4]} 9. Qd2 {[%clk 0:02:40.2]} 9... Ne4 {[%clk 0:02:50.5]} 10.
Nxe4 {[%clk 0:02:33.6]} 10... dxe4 {[%clk 0:02:51.4]} 11. Ne5 {[%clk 0:02:33.3]}
11... cxd4 {[%clk 0:02:49.7]} 12. Nxc6 {[%clk 0:02:33.1]} 12... bxc6 {[%clk
0:02:49]} 13. exd4 {[%clk 0:02:18.2]} 13... Qxd4 {[%clk 0:02:48.3]} 14. Qxd4
{[%clk 0:02:18.8]} 14... Bxd4 {[%clk 0:02:48.9]} 15. O-O-O {[%clk 0:02:19.7]}
15... c5 {[%clk 0:02:45.1]} 16. Bc4 {[%clk 0:02:10.7]} 16... Bg4 {[%clk
0:02:38.3]} 17. Rxd4 {[%clk 0:02:09.3]} 17... cxd4 {[%clk 0:02:36.9]} 18. Be5
{[%clk 0:02:09.9]} 18... Bh5 {[%clk 0:02:35.4]} 19. g4 {[%clk 0:02:10.3]} 19...
Rfc8 {[%clk 0:02:23.3]} 20. Bd5 {[%clk 0:02:01.2]} 20... Rc5 {[%clk 0:01:42.7]}
21. Bxa8 {[%clk 0:01:59.9]} 21... Rxe5 {[%clk 0:01:42.6]} 22. gxh5 {[%clk
0:02:00]} 22... gxh5 {[%clk 0:01:41.5]} 23. Rd1 {[%clk 0:01:51.5]} 23... e3
{[%clk 0:01:39.3]} 24. f4 {[%clk 0:01:36.8]} 24... Re6 {[%clk 0:01:15.2]} 25.
Bd5 {[%clk 0:01:15.9]} 25... Rd6 {[%clk 0:01:15.3]} 26. Bf3 {[%clk 0:01:06.6]}
26... h4 {[%clk 0:01:08.7]} 27. Rh1 {[%clk 0:01:03.8]} 27... Rh6 {[%clk
0:01:08.9]} 28. Kd1 {[%clk 0:01:02.6]} 28... h3 {[%clk 0:01:00.9]} 29. Rh2
{[%clk 0:01:02.3]} 29... Rh4 {[%clk 0:01:00.4]} 30. Ke2 {[%clk 0:01:00.9]} 30...
Rxf4 {[%clk 0:00:59.4]} 31. Rxh3 {[%clk 0:01:01.4]} 31... e5 {[%clk 0:00:59.7]}
32. Rg3+ {[%clk 0:00:41.5]} 32... Kf8 {[%clk 0:00:58.5]} 33. Rg4 {[%clk
0:00:39.6]} 33... Rf5 {[%clk 0:00:37.9]} 34. c3 {[%clk 0:00:24.8]} 34... dxc3
{[%clk 0:00:37.6]} 35. bxc3 {[%clk 0:00:24.6]} 35... Ke7 {[%clk 0:00:31.2]} 36.
Kxe3 {[%clk 0:00:23.7]} 36... Rf6 {[%clk 0:00:31.4]} 37. Ra4 {[%clk 0:00:22.6]}
37... a6 {[%clk 0:00:28.8]} 38. Bb7 {[%clk 0:00:14.1]} 38... Rb6 {[%clk
0:00:28.4]} 39. Bxa6 {[%clk 0:00:13.9]} 39... f5 {[%clk 0:00:28.5]} 40. Bd3
{[%clk 0:00:12]} 40... e4 {[%clk 0:00:25]} 41. Bc4 {[%clk 0:00:07.6]} 41... Rb2
{[%clk 0:00:20]} 42. Ra5 {[%clk 0:00:03.8]} 42... Kf6 {[%clk 0:00:18.9]} 43. Bd5
{[%clk 0:00:03.7]} 43... Rc2 {[%clk 0:00:17.1]} 44. c4 {[%clk 0:00:03.3]} 44...
Rc3+ {[%clk 0:00:13.4]} 45. Ke2 {[%clk 0:00:03.9]} 45... Ke5 {[%clk 0:00:12.4]}
46. Bb7+ {[%clk 0:00:03.5]} 46... Kf4 {[%clk 0:00:11.9]} 47. Bc8 {[%clk
0:00:04]} 47... Rc2+ {[%clk 0:00:11.8]} 48. Kd1 {[%clk 0:00:04.3]} 48... Rh2
{[%clk 0:00:10.4]} 49. Bxf5 {[%clk 0:00:04.5]} 49... Ke3 {[%clk 0:00:10.1]} 50.
Bxe4 {[%clk 0:00:04.7]} 50... Kxe4 {[%clk 0:00:11]} 51. c5 {[%clk 0:00:05.1]}
51... Kd3 {[%clk 0:00:11.2]} 52. Kc1 {[%clk 0:00:05.7]} 52... Kc3 {[%clk
0:00:10.3]} 53. Kd1 {[%clk 0:00:06.4]} 53... Kd3 {[%clk 0:00:10.2]} 54. Ke1
{[%clk 0:00:07]} 54... Ke3 {[%clk 0:00:10.6]} 55. Kf1 {[%clk 0:00:07.5]} 55...
Kf3 {[%clk 0:00:10.8]} 56. Kg1 {[%clk 0:00:08.1]} 56... Rc2 {[%clk 0:00:11.5]}
57. Ra3+ {[%clk 0:00:07.3]} 57... Ke4 {[%clk 0:00:10.6]} 58. Ra5 {[%clk
0:00:07.6]} 58... Kd5 {[%clk 0:00:09.6]} 59. Ra8 {[%clk 0:00:06.5]} 59... Rxc5
{[%clk 0:00:09.1]} 60. Kf1 {[%clk 0:00:06.9]} 60... Rc2 {[%clk 0:00:09]} 61. Ke1
{[%clk 0:00:07.3]} 61... Kd4 {[%clk 0:00:08.8]} 62. Kd1 {[%clk 0:00:07.9]} 62...
Rh2 {[%clk 0:00:09.4]} 63. Kc1 {[%clk 0:00:08.3]} 63... Kc3 {[%clk 0:00:09.8]}
64. Rc8+ {[%clk 0:00:08.4]} 64... Kb4 {[%clk 0:00:10.1]} 65. Rb8+ {[%clk
0:00:08.6]} 65... Ka3 {[%clk 0:00:10.1]} 66. Ra8+ {[%clk 0:00:09.1]} 66... Kb4
{[%clk 0:00:10.5]} 67. a4 {[%clk 0:00:09.8]} 67... Kc3 {[%clk 0:00:09.7]} 68.
Kd1 {[%clk 0:00:09.6]} 68... Kd3 {[%clk 0:00:10.1]} 69. Ke1 {[%clk 0:00:10.1]}
69... Ke3 {[%clk 0:00:10.4]} 70. Kf1 {[%clk 0:00:10.2]} 70... Kf3 {[%clk
0:00:10.9]} 71. Kg1 {[%clk 0:00:10.8]} 71... Rg2+ {[%clk 0:00:11.4]} 72. Kh1
{[%clk 0:00:10.9]} 72... Ra2 {[%clk 0:00:12.1]} 73. a5 {[%clk 0:00:11.4]} 73...
Kg3 {[%clk 0:00:12.5]} 74. Rg8+ {[%clk 0:00:11.4]} 74... Kf3 {[%clk 0:00:10.4]}
75. Rg5 {[%clk 0:00:10.4]} 75... Ra1+ {[%clk 0:00:10.1]} 76. Kh2 {[%clk
0:00:10.5]} 76... Ra2+ {[%clk 0:00:10.6]} 77. Kh3 {[%clk 0:00:11]} 77... Ra1
{[%clk 0:00:11]} 78. Rg3+ {[%clk 0:00:11.1]} 78... Kf4 {[%clk 0:00:11]} 79. Rg4+
{[%clk 0:00:11.6]} 79... Kf3 {[%clk 0:00:10.6]} 80. Rg3+ {[%clk 0:00:11.5]}
80... Kf4 {[%clk 0:00:10.9]} 81. Rg4+ {[%clk 0:00:08.3]} 81... Kf5 {[%clk
0:00:11]} 82. Rh4 {[%clk 0:00:06.4]} 82... Ra3+ {[%clk 0:00:08.6]} 83. Kg2
{[%clk 0:00:06.7]} 83... Kg5 {[%clk 0:00:08.8]} 84. Rb4 {[%clk 0:00:06.9]} 84...
Rxa5 {[%clk 0:00:08.9]} 85. Rb2 {[%clk 0:00:05.6]} 85... Ra3 {[%clk 0:00:08.9]}
86. Rf2 {[%clk 0:00:06]} 86... Kg4 {[%clk 0:00:08.9]} 87. Rb2 {[%clk 0:00:06.1]}
87... Rg3+ {[%clk 0:00:08.9]} 88. Kh2 {[%clk 0:00:05.9]} 88... Rc3 {[%clk
0:00:09.3]} 89. Rb4+ {[%clk 0:00:05]} 89... Kf3 {[%clk 0:00:09.3]} 90. Rb2
{[%clk 0:00:05.3]} 90... Re3 {[%clk 0:00:09.1]} 91. Rc2 {[%clk 0:00:05.1]} 91...
Re2+ {[%clk 0:00:09.4]} 92. Rxe2 {[%clk 0:00:05.7]} 92... Kxe2 {[%clk
0:00:10.3]} 1/2-1/2